bitfinex/quotes_BTCUSD_20250808
["timestamp","ask_amount","ask_price","bid_price","bid_amount"]
[1754621112189,1.38901505,116810.0,116800.0,0.002]
[1754621112595,0.75563223,116810.0,116800.0,0.002]
[1754621112760,1.38901505,116810.0,116800.0,0.002]
[1754621112961,1.07232364,116810.0,116800.0,0.002]
[1754621113591,1.38901505,116810.0,116800.0,0.002]
[1754621114346,0.75563223,116810.0,116800.0,0.002]
[1754621114551,1.38901505,116810.0,116800.0,0.002]
[1754621120669,1.07232364,116810.0,116800.0,0.002]
[1754621121077,1.07216364,116810.0,116800.0,0.002]
[1754621126055,0.75547223,116810.0,116800.0,0.002]
[1754621126235,1.07216364,116810.0,116800.0,0.002]
[1754621132125,0.94216364,116810.0,116800.0,0.002]
[1754621132363,0.62052223,116810.0,116800.0,0.00407]
[1754621132589,0.59721364,116810.0,116800.0,0.00407]
[1754621133431,0.28052223,116810.0,116800.0,0.00407]
[1754621133634,0.59721364,116810.0,116800.0,0.00407]
[1754621134758,0.60216364,116810.0,116800.0,0.00407]
[1754621134983,0.28547223,116810.0,116800.0,0.00407]
[1754621135438,0.60216364,116810.0,116800.0,0.00407]
[1754621136374,0.73208364,116810.0,116800.0,0.00407]
[1754621136602,0.41539223,116810.0,116800.0,0.00407]
[1754621137229,0.73008364,116810.0,116800.0,0.00407]
[1754621138473,0.60016364,116810.0,116800.0,0.00407]
[1754621140395,0.73012364,116810.0,116800.0,0.00407]
[1754621141000,0.41543223,116810.0,116800.0,0.00407]
[1754621141210,0.73212364,116810.0,116800.0,0.00407]
[1754621142122,0.73212364,116810.0,116800.0,0.002]
[1754621142632,0.41543223,116810.0,116800.0,0.002]
[1754621142838,0.73212364,116810.0,116800.0,0.002]
[1754621143439,0.73212364,116810.0,116800.0,0.00407]
[1754621144410,0.26030321,116810.0,116800.0,0.22085211]
[1754621144617,0.55128962,116810.0,116800.0,0.22085211]
[1754621144813,0.55429962,116810.0,116800.0,0.22085211]
[1754621145037,0.70371864,116810.0,116800.0,0.09093211]
[1754621145243,0.70371864,116810.0,116800.0,0.002]
[1754621148998,0.70371864,116810.0,116800.0,0.00405]
[1754621149160,0.69865864,116810.0,116800.0,0.17528287]
[1754621149364,0.38196723,116810.0,116800.0,0.17528287]
[1754621149561,0.25204723,116810.0,116800.0,0.30520287]
[1754621150667,0.56873864,116810.0,116800.0,0.30520287]
[1754621152514,0.25204723,116810.0,116800.0,0.30520287]
[1754621153882,0.02044902,116810.0,116800.0,0.71054639]
[1754621156077,0.08082902,116810.0,116800.0,0.70875639]
[1754621156484,0.02044902,116810.0,116800.0,1.0254478]
[1754621156718,0.02044902,116810.0,116800.0,1.2272378]
[1754621156719,0.003,116810.0,116800.0,1.2272378]
[1754621157670,0.001,116810.0,116800.0,1.2272378]
[1754621158231,0.004,116810.0,116800.0,1.2282378]
[1754621158595,0.003,116810.0,116800.0,1.2262378]
[1754621159091,0.007,116810.0,116800.0,0.59385498]
[1754621159293,0.007,116810.0,116800.0,1.2272378]
[1754621160485,0.007,116810.0,116800.0,1.88392921]
[1754621160733,0.007,116810.0,116800.0,1.90962521]
[1754621160945,0.007,116810.0,116800.0,1.5929338]
[1754621161499,0.004,116810.0,116800.0,1.5919338]
[1754621161738,0.004,116810.0,116800.0,2.2919338]
[1754621161947,0.006,116810.0,116800.0,2.2919338]
[1754621162108,0.002,116810.0,116800.0,2.60862521]
[1754621162310,0.005,116810.0,116800.0,2.60962521]
[1754621162713,0.005,116810.0,116800.0,2.50353006]
[1754621166689,0.07782902,116840.0,116830.0,0.1711889]
[1754621166897,0.07987902,116840.0,116830.0,0.81427041]
[1754621167126,0.08288902,116840.0,116830.0,0.81213055]
[1754621167442,0.07782902,116840.0,116830.0,0.81213055]
[1754621167626,0.06038,116840.0,116830.0,0.81213055]
[1754621168232,0.06138,116840.0,116830.0,0.81213055]
[1754621168978,0.06338,116840.0,116830.0,0.81313055]
[1754621169410,0.06138,116840.0,116830.0,0.81213055]
[1754621169617,0.06738,116840.0,116830.0,0.81313055]
[1754621169831,0.06738,116840.0,116830.0,0.39114101]
[1754621170035,0.06738,116840.0,116830.0,0.81313055]
[1754621170266,0.07244,116840.0,116830.0,0.81108055]
[1754621170559,0.24261425,116840.0,116830.0,1.08909101]
[1754621170766,0.24261425,116840.0,116830.0,0.91790211]
[1754621171006,0.26506327,116840.0,116830.0,0.91890211]
[1754621171181,0.68705281,116840.0,116830.0,0.08886211]
[1754621171358,0.68705281,116840.0,116830.0,0.13212]
[1754621171802,0.68705281,116840.0,116830.0,0.002]
[1754621172570,0.26506327,116840.0,116830.0,0.002]
[1754621172770,0.68705281,116840.0,116830.0,0.002]
[1754621173026,0.68105281,116840.0,116830.0,0.001]
[1754621173429,0.18865258,116820.0,116810.0,0.13024]
[1754621173645,0.19070258,116820.0,116810.0,0.2171495]
[1754621173966,0.25196258,116820.0,116810.0,0.2171495]
[1754621174113,0.25196258,116820.0,116810.0,0.38836771]
[1754621174966,0.25296258,116820.0,116810.0,0.38936771]
[1754621175467,0.25396258,116820.0,116810.0,0.39536771]
[1754621180149,0.08275902,116820.0,116810.0,0.81943725]
[1754621181496,0.25396258,116820.0,116810.0,0.81943725]
[1754621182583,0.25396258,116820.0,116810.0,0.39744771]
[1754621182788,0.25396258,116820.0,116810.0,0.39536771]
[1754621185330,0.25396258,116820.0,116810.0,0.81735725]
[1754621185635,0.08275902,116820.0,116810.0,0.81943725]
[1754621186133,0.25396258,116820.0,116810.0,0.81943725]
[1754621188128,0.25396258,116820.0,116810.0,0.39744771]
[1754621189181,0.25396258,116820.0,116810.0,0.2241495]
[1754621189861,0.25396258,116820.0,116810.0,0.39536771]
[1754621192511,0.08275902,116820.0,116810.0,0.39536771]
[1754621192724,0.06015,116820.0,116810.0,0.81943725]
[1754621193674,0.002,116820.0,116810.0,0.81943725]
[1754621193786,0.06015,116820.0,116810.0,0.81943725]
[1754621199033,0.002,116820.0,116810.0,0.97122725]
[1754621199340,0.002,116820.0,116810.0,0.54923771]
[1754621199493,0.002,116820.0,116810.0,0.97122725]
[1754621200145,0.001,116820.0,116810.0,1.23212725]
[1754621200524,0.003,116820.0,116810.0,1.22712725]
[1754621200975,0.009,116820.0,116810.0,1.22812725]
[1754621202525,0.009,116820.0,116810.0,1.56812725]
[1754621206117,0.009,116820.0,116810.0,1.59382125]
[1754621208024,0.009,116820.0,116810.0,1.33192125]
[1754621208839,0.003,116820.0,116810.0,1.33092125]
[1754621209411,0.006,116820.0,116810.0,1.33192125]
[1754621209772,0.003,116820.0,116810.0,1.33092125]
[1754621210333,0.004,116820.0,116810.0,1.33192125]
[1754621213580,0.05891,116840.0,116810.0,1.82338841]
[1754621213777,0.05891,116840.0,116830.0,1.85516798]
[1754621213980,0.05891,116840.0,116830.0,1.98763798]
[1754621214181,0.05891,116840.0,116830.0,2.24953798]
[1754621214344,0.05891,116840.0,116830.0,2.27522598]
[1754621215053,0.06391,116840.0,116830.0,2.27622598]
[1754621216158,0.06691,116840.0,116830.0,2.27722598]
[1754621216932,0.06791,116840.0,116830.0,2.27722598]
[1754621217639,0.06791,116840.0,116830.0,2.36408809]
[1754621218409,0.009,116840.0,116830.0,2.36587809]
[1754621219534,0.06791,116840.0,116830.0,2.36408809]
[1754621220365,0.009,116840.0,116830.0,2.36408809]
[1754621220569,0.06791,116840.0,116830.0,2.36408809]
[1754621220841,0.009,116840.0,116830.0,2.36587809]
[1754621221261,0.009,116840.0,116830.0,2.36408809]
[1754621221466,0.06791,116840.0,116830.0,2.36408809]
[1754621225800,0.009,116840.0,116830.0,2.36587809]
[1754621226625,0.06791,116840.0,116830.0,2.36408809]
[1754621227731,1e-08,116840.0,116830.0,2.36587809]
[1754621229070,0.05891,116850.0,116840.0,0.17117425]
[1754621229208,0.05891,116850.0,116840.0,1.23786511]
[1754621229440,0.05891,116850.0,116840.0,1.23572544]
[1754621230099,0.06196,116850.0,116840.0,1.23572544]
[1754621231751,0.06196,116850.0,116840.0,1.26141244]
[1754621232494,0.06196,116850.0,116840.0,1.52331244]
[1754621233175,0.06196,116850.0,116840.0,1.52431244]
[1754621233922,0.05891,116850.0,116840.0,1.52431244]
[1754621234133,0.05991,116850.0,116840.0,1.52431244]
[1754621234357,0.001,116850.0,116840.0,1.52431244]
[1754621234577,0.001,116850.0,116840.0,1.52610244]
[1754621235208,0.06024,116850.0,116840.0,1.52610244]
[1754621235662,0.06024,116850.0,116840.0,1.52431244]
[1754621235876,0.06024,116850.0,116840.0,0.68033336]
[1754621236055,0.06542,116850.0,116840.0,1.52431244]
[1754621236197,0.06542,116850.0,116840.0,1.39271244]
[1754621236406,0.06542,116850.0,116840.0,1.52248244]
[1754621236811,0.06336,116850.0,116840.0,1.52452244]
[1754621238008,0.06024,116850.0,116840.0,1.52452244]
[1754621239399,1e-08,116860.0,116850.0,1.85513868]
[1754621239604,1e-08,116860.0,116850.0,2.07384079]
[1754621239779,1e-08,116860.0,116850.0,2.10166079]
[1754621240013,1e-08,116860.0,116850.0,1.65389125]
[1754621240246,0.00518001,116860.0,116850.0,1.65185125]
[1754621240856,0.00518001,116860.0,116850.0,1.65485125]
[1754621240998,0.00518001,116860.0,116850.0,1.66350237]
[1754621241230,0.06442001,116860.0,116850.0,1.66350237]
[1754621241631,0.06442001,116860.0,116850.0,1.6886602]
[1754621242187,0.06442001,116860.0,116850.0,1.6907002]
[1754621243221,0.06442001,116860.0,116850.0,1.7163822]
[1754621243421,1e-08,116860.0,116850.0,2.13837174]
[1754621243616,1e-08,116860.0,116850.0,2.16415174]
[1754621244356,1e-08,116860.0,116850.0,2.42605174]
[1754621244591,1e-08,116860.0,116850.0,2.42705174]
[1754621247175,1e-08,116860.0,116850.0,2.45205174]
[1754621249682,0.07674,116880.0,116870.0,1.01113031]
[1754621249846,0.07686192,116880.0,116870.0,2.0756915]
[1754621250187,0.08204192,116880.0,116870.0,2.0756915]
[1754621250369,0.08204192,116880.0,116870.0,2.1013695]
[1754621251152,0.08204192,116880.0,116870.0,2.1023695]
[1754621252382,0.07998192,116880.0,116870.0,2.1023695]
[1754621252773,0.08098192,116880.0,116870.0,2.1023695]
[1754621253215,0.08304192,116880.0,116870.0,2.1023695]
[1754621253393,0.08304192,116880.0,116870.0,1.9003295]
[1754621253788,0.08304192,116880.0,116870.0,1.47833996]
[1754621254546,0.08304192,116880.0,116870.0,1.9003295]
[1754621255692,0.0004,116890.0,116880.0,0.17111567]
[1754621255876,0.0004,116890.0,116880.0,1.4128158]
[1754621256077,0.0004,116890.0,116880.0,1.41067686]
[1754621256279,0.05964,116890.0,116880.0,1.41067686]
[1754621257161,0.0014,116890.0,116880.0,1.41067686]
[1754621257375,0.06064,116890.0,116880.0,1.41067686]
[1754621257576,0.0014,116890.0,116880.0,1.43635186]
[1754621258301,0.0014,116890.0,116880.0,1.69825186]
[1754621258503,0.0014,116890.0,116880.0,1.72245186]
[1754621259122,0.0014,116890.0,116880.0,1.69825186]
[1754621259798,0.0004,116890.0,116880.0,1.69825186]
[1754621260027,0.0004,116890.0,116880.0,1.69925186]
[1754621260486,0.0004,116890.0,116880.0,1.72345186]
[1754621261097,0.0004,116890.0,116880.0,1.72524186]
[1754621261611,0.0004,116890.0,116880.0,1.72345186]
[1754621262247,0.0004,116890.0,116880.0,1.69925186]
[1754621263688,0.05799,116890.0,116880.0,1.69925186]
[1754621265186,0.06305,116890.0,116880.0,1.69925186]
[1754621265392,0.06305,116890.0,116880.0,1.69721186]
[1754621265593,0.06305,116890.0,116880.0,1.54053186]
[1754621265793,0.06305,116890.0,116880.0,1.39053186]
[1754621266019,0.06305,116890.0,116880.0,0.98808232]
[1754621266235,0.06305,116890.0,116880.0,1.41007186]
[1754621267870,0.06405,116890.0,116880.0,1.41007186]
[1754621268072,0.06405,116890.0,116880.0,1.26007186]
[1754621268217,0.06405,116890.0,116880.0,1.41007186]
[1754621268399,0.06405,116890.0,116880.0,1.40907186]
[1754621268612,0.06505,116890.0,116880.0,1.40907186]
[1754621269447,0.06505,116890.0,116880.0,1.25907186]
[1754621269653,0.06505,116890.0,116880.0,1.27763186]
[1754621269855,0.06505,116890.0,116880.0,0.98712232]
[1754621271113,0.23615103,116890.0,116880.0,0.28365278]
[1754621271227,0.17111567,116880.0,116870.0,0.3]
[1754621271449,0.17113031,116870.0,116860.0,0.1968279]
[1754621271640,0.25122933,116870.0,116860.0,0.38968898]
[1754621271887,0.25122933,116870.0,116860.0,0.00012192]
[1754621272087,0.18859397,116860.0,116850.0,0.89195824]
[1754621272242,0.25124397,116860.0,116850.0,0.1316]
[1754621272433,0.25124397,116860.0,116850.0,0.3027596]
[1754621273087,0.25124397,116860.0,116850.0,0.72474914]
[1754621273747,0.25124397,116860.0,116850.0,0.1711596]
[1754621273958,0.25124397,116860.0,116850.0,0.3027596]
[1754621274793,0.08009902,116860.0,116850.0,0.3027596]
[1754621274997,0.08209902,116860.0,116850.0,0.3027596]
[1754621275212,0.08409902,116860.0,116850.0,0.72474914]
[1754621278142,0.23779495,116860.0,116850.0,0.72474914]
[1754621278341,0.06665,116860.0,116850.0,0.72474914]
[1754621279417,0.06665,116860.0,116850.0,0.3027596]
[1754621279623,0.06665,116860.0,116850.0,0.72474914]
[1754621280968,0.23779495,116860.0,116850.0,0.72474914]
[1754621281174,0.23779495,116860.0,116850.0,0.3027596]
[1754621281397,0.06665,116860.0,116850.0,0.79422676]
[1754621281605,0.06665,116860.0,116850.0,0.3027596]
[1754621282018,0.06665,116860.0,116850.0,0.72474914]
[1754621282698,0.06665,116860.0,116850.0,0.81161125]
[1754621282900,0.06665,116860.0,116850.0,1.07351125]
[1754621283209,0.06363,116860.0,116850.0,1.07567125]
[1754621283406,0.004,116860.0,116850.0,1.63501125]
[1754621284067,0.004,116860.0,116850.0,1.21302171]
[1754621284272,0.06159,116860.0,116850.0,1.63201125]
[1754621285051,0.06363,116860.0,116850.0,1.57567125]
[1754621285287,0.06665,116860.0,116850.0,1.57567125]
[1754621286417,0.06363,116860.0,116850.0,1.57567125]
[1754621286633,0.004,116860.0,116850.0,1.63201125]
[1754621286843,0.004,116860.0,116850.0,1.63501125]
[1754621287050,0.004,116860.0,116850.0,1.55302171]
[1754621287249,0.004,116860.0,116850.0,1.97501125]
[1754621287871,0.004,116860.0,116850.0,1.55002171]
[1754621288079,0.06665,116860.0,116850.0,1.14152171]
[1754621288286,0.06665,116860.0,116850.0,1.56351125]
[1754621289290,0.06665,116860.0,116850.0,1.58968587]
[1754621289503,0.06665,116860.0,116850.0,1.16769633]
[1754621289687,0.06665,116860.0,116850.0,1.58968587]
[1754621291109,0.06363,116860.0,116850.0,1.59184587]
[1754621292881,0.06363,116860.0,116850.0,1.64818587]
[1754621294117,0.06159,116860.0,116850.0,1.64818587]
[1754621294406,0.004,116860.0,116850.0,1.65129587]
[1754621295576,0.08016902,116890.0,116880.0,0.17111567]
[1754621295778,0.08241133,116890.0,116880.0,0.72630521]
[1754621296578,0.06496231,116890.0,116880.0,0.81512732]
[1754621296778,0.00054231,116890.0,116880.0,1.07327732]
[1754621297289,0.05973231,116890.0,116880.0,1.07016732]
[1754621297493,0.05973231,116890.0,116880.0,1.01512732]
[1754621297711,0.06183231,116890.0,116880.0,1.01512732]
[1754621297920,0.06183231,116890.0,116880.0,1.01612732]
[1754621298113,0.00054231,116890.0,116880.0,1.01712732]
[1754621298355,0.00054231,116890.0,116880.0,1.07527732]
[1754621298758,0.05973231,116890.0,116880.0,1.07216732]
[1754621298991,0.05973231,116890.0,116880.0,1.01712732]
[1754621299280,0.06183231,116890.0,116880.0,1.01712732]
[1754621299513,0.06183231,116890.0,116880.0,1.07216732]
[1754621300905,0.05973231,116890.0,116880.0,1.07216732]
[1754621301292,0.00054231,116890.0,116880.0,1.64726686]
[1754621301635,0.00054231,116890.0,116880.0,0.80328778]
[1754621301827,0.00054231,116890.0,116880.0,1.22527732]
[1754621301949,0.00054231,116890.0,116880.0,1.64726686]
[1754621302518,0.00054231,116890.0,116880.0,0.80328778]
[1754621302727,0.06183231,116890.0,116880.0,1.58911686]
[1754621302939,0.06496231,116890.0,116880.0,1.58911686]
[1754621304101,0.06183231,116890.0,116880.0,1.58911686]
[1754621304515,0.06183231,116890.0,116880.0,1.64415686]
[1754621304704,0.06183231,116890.0,116880.0,0.80017778]
[1754621304938,0.06183231,116890.0,116880.0,1.64415686]
[1754621305067,0.05973231,116890.0,116880.0,1.64415686]
[1754621306017,0.06496231,116890.0,116880.0,1.58719686]
[1754621306422,0.06496231,116890.0,116880.0,1.84909686]
[1754621308042,0.23606334,116890.0,116880.0,1.84909686]
[1754621308483,0.06496231,116890.0,116880.0,1.84909686]
[1754621309655,0.23606334,116890.0,116880.0,1.42710732]
[1754621310055,0.25351236,116890.0,116880.0,0.81912954]
[1754621310292,0.25351236,116890.0,116880.0,0.99024521]
[1754621311140,0.08241133,116890.0,116880.0,1.41223475]
[1754621311877,0.08241133,116890.0,116880.0,1.41419475]
[1754621312484,0.08241133,116890.0,116880.0,1.15229475]
[1754621313068,0.25351236,116890.0,116880.0,0.72834521]
[1754621313493,0.23606334,116890.0,116880.0,0.73030521]
[1754621315636,0.06496231,116890.0,116880.0,0.73030521]
[1754621318907,0.23606334,116890.0,116880.0,0.73030521]
[1754621321102,0.06496231,116890.0,116880.0,0.73030521]
[1754621321416,0.23606334,116890.0,116880.0,0.73030521]
[1754621324812,0.23293334,116890.0,116880.0,0.73030521]
[1754621327091,0.23594334,116890.0,116880.0,0.73030521]
[1754621329007,0.06484231,116890.0,116880.0,0.73030521]
[1754621329633,0.23594334,116890.0,116880.0,0.73030521]
[1754621329861,0.23594334,116890.0,116880.0,0.30831567]
[1754621330073,0.23594334,116890.0,116880.0,0.73030521]
[1754621334229,0.23594334,116890.0,116880.0,0.30831567]
[1754621334441,0.23594334,116890.0,116880.0,0.73030521]
[1754621336844,0.23594334,116890.0,116880.0,0.30831567]
[1754621337058,0.23594334,116890.0,116880.0,0.73030521]
[1754621339811,0.23293334,116890.0,116880.0,0.73030521]
[1754621340202,0.23293334,116890.0,116880.0,0.78673521]
[1754621340910,0.00054231,116890.0,116880.0,1.21196475]
[1754621341349,0.00054231,116890.0,116880.0,1.29882686]
[1754621341934,0.00054231,116890.0,116880.0,1.56072686]
[1754621343063,0.00054231,116890.0,116880.0,1.91072686]
[1754621343908,0.00054231,116890.0,116880.0,2.25072686]
[1754621344106,0.00054231,116890.0,116880.0,2.24972686]
[1754621344478,0.00254231,116890.0,116880.0,2.24872686]
[1754621344908,0.00054231,116890.0,116880.0,2.24872686]
[1754621345103,0.00354231,116890.0,116880.0,2.04872686]
[1754621345302,0.00054231,116890.0,116880.0,2.04872686]
[1754621345478,0.00154231,116890.0,116880.0,2.04872686]
[1754621345675,0.00354231,116890.0,116880.0,1.76224686]
[1754621345885,0.06782231,116890.0,116880.0,1.41602732]
[1754621346085,0.06782231,116890.0,116880.0,1.41610732]
[1754621346466,0.00354231,116890.0,116880.0,1.05378778]
[1754621346701,0.00354231,116890.0,116880.0,1.89776686]
[1754621347526,0.00354231,116890.0,116880.0,1.83809686]
[1754621347527,0.06481231,116890.0,116880.0,1.83809686]
[1754621347728,0.06782231,116890.0,116880.0,1.41610732]
[1754621347910,0.06782231,116890.0,116880.0,1.15420732]
[1754621348294,0.06267231,116890.0,116880.0,1.21063732]
[1754621348496,0.00354231,116890.0,116880.0,1.21387732]
[1754621350150,0.00354231,116890.0,116880.0,1.63586686]
[1754621352498,0.00354231,116890.0,116880.0,1.21387732]
[1754621352703,0.00354231,116890.0,116880.0,1.63586686]
[1754621353154,0.00354231,116890.0,116880.0,1.21387732]
[1754621353335,0.06267231,116890.0,116880.0,1.21387732]
[1754621353915,0.00354231,116890.0,116880.0,1.47577732]
[1754621354101,0.00354231,116890.0,116880.0,1.89776686]
[1754621354742,0.00354231,116890.0,116880.0,1.05378778]
[1754621354943,0.05901231,116890.0,116880.0,1.41610732]
[1754621355329,0.06222231,116890.0,116880.0,1.61610732]
[1754621356028,0.06222231,116890.0,116880.0,1.41610732]
[1754621359359,0.00876231,116890.0,116880.0,1.41610732]
[1754621360635,0.00555231,116890.0,116880.0,1.41610732]
[1754621363041,0.00876231,116890.0,116880.0,1.41610732]
[1754621363242,0.00876231,116890.0,116880.0,0.99411778]
[1754621363468,0.00555231,116890.0,116880.0,1.41610732]
[1754621364421,0.05901231,116890.0,116880.0,1.41610732]
[1754621364996,0.05901231,116890.0,116880.0,1.47348732]
[1754621365220,0.05700231,116890.0,116880.0,1.47348732]
[1754621365578,0.00354231,116890.0,116880.0,1.89864686]
[1754621374975,0.00354231,116890.0,116880.0,1.92432486]
[1754621377943,0.00354231,116890.0,116880.0,1.94932486]
[1754621378567,0.00354231,116890.0,116880.0,1.92432486]
[1754621378771,0.00354231,116890.0,116880.0,2.07432486]
[1754621379448,0.00254231,116890.0,116880.0,2.07432486]
[1754621380185,0.00154231,116890.0,116880.0,2.77432486]
[1754621380558,0.00254231,116890.0,116880.0,2.77432486]
[1754621387464,0.00254231,116890.0,116880.0,2.79932486]
[1754621395547,0.00254231,116890.0,116880.0,2.88946486]
[1754621395788,0.00254231,116890.0,116880.0,2.79932486]
[1754621398705,0.00254231,116890.0,116880.0,3.85121936]
[1754621400034,0.00154231,116890.0,116880.0,3.85121936]
[1754621400474,0.00154231,116890.0,116880.0,3.85221936]
[1754621400902,0.00154231,116890.0,116880.0,2.90428257]
[1754621401087,0.00054231,116890.0,116880.0,2.90428257]
[1754621401387,0.00054231,116890.0,116880.0,3.85221936]
[1754621402391,0.00054231,116890.0,116880.0,2.90428257]
[1754621404994,0.00035614,116890.0,116880.0,2.90428257]
[1754621408266,0.05424614,116890.0,116880.0,2.84373257]
[1754621408500,0.05720614,116890.0,116880.0,2.81613257]
[1754621409630,0.05720614,116890.0,116880.0,2.81829257]
[1754621411947,0.05720614,116890.0,116880.0,2.81613257]
[1754621414654,0.05720614,116890.0,116880.0,2.81823257]
[1754621425128,0.05424614,116890.0,116880.0,2.81823257]
[1754621429892,0.05726614,116890.0,116880.0,2.15979364]
[1754621430093,0.05726614,116890.0,116880.0,2.47577257]
[1754621430296,0.05726614,116890.0,116880.0,2.81577257]
[1754621430720,0.05726614,116890.0,116880.0,2.49979364]
[1754621431363,0.05726614,116890.0,116880.0,2.81577257]
[1754621431548,0.05726614,116890.0,116880.0,2.11577257]
[1754621431982,0.05726614,116890.0,116880.0,1.79979364]
[1754621432599,0.05726614,116890.0,116880.0,2.11577257]
[1754621432809,0.05726614,116890.0,116880.0,1.79979364]
[1754621433762,0.05726614,116890.0,116880.0,1.79879364]
[1754621433965,0.05826614,116890.0,116880.0,1.79879364]
[1754621434671,0.05926614,116890.0,116880.0,1.79879364]
[1754621440925,0.05926614,116890.0,116880.0,1.16683578]
[1754621441144,0.05926614,116890.0,116880.0,1.64879364]
[1754621441334,0.23036717,116890.0,116880.0,1.77311564]
[1754621441773,0.05926614,116890.0,116880.0,1.77311564]
[1754621442312,0.23036717,116890.0,116880.0,1.77311564]
[1754621442520,0.23036717,116890.0,116880.0,1.62311564]
[1754621442735,0.23036717,116890.0,116880.0,1.77311564]
[1754621442939,0.05926614,116890.0,116880.0,1.77311564]
[1754621443140,0.23036717,116890.0,116880.0,0.99115778]
[1754621443346,0.23036717,116890.0,116880.0,1.62311564]
[1754621443761,0.23036717,116890.0,116880.0,1.77311564]
[1754621444399,0.05926614,116890.0,116880.0,1.77311564]
[1754621447204,0.05926614,116890.0,116880.0,1.14115778]
[1754621447382,0.05926614,116890.0,116880.0,1.77311564]
[1754621450766,0.05926614,116890.0,116880.0,1.77510564]
[1754621451760,0.05926614,116890.0,116880.0,1.14314778]
[1754621451986,0.23036717,116890.0,116880.0,1.77311564]
[1754621452188,0.23036717,116890.0,116880.0,1.62311564]
[1754621452644,0.05926614,116890.0,116880.0,1.62311564]
[1754621452973,0.05826614,116890.0,116880.0,1.62311564]
[1754621453398,0.06026614,116890.0,116880.0,1.62311564]
[1754621453908,0.05926614,116890.0,116880.0,1.62311564]
[1754621454346,0.06126614,116890.0,116880.0,1.62311564]
[1754621455600,0.06126614,116890.0,116880.0,1.62510564]
[1754621458807,0.05824614,116890.0,116880.0,1.62510564]
[1754621464898,0.05824614,116890.0,116880.0,1.65078664]
[1754621467099,0.05824614,116890.0,116880.0,1.01882878]
[1754621467250,0.05824614,116890.0,116880.0,1.65078664]
[1754621471340,0.05824614,116890.0,116880.0,1.01882878]
[1754621471602,0.06117614,116890.0,116880.0,1.65078664]
[1754621474031,0.05824614,116890.0,116880.0,1.65078664]
[1754621475766,0.05824614,116890.0,116880.0,1.01882878]
[1754621475911,0.05824614,116890.0,116880.0,1.65078664]
[1754621476628,0.05824614,116890.0,116880.0,1.01882878]
[1754621476835,0.22934717,116890.0,116880.0,1.65078664]
[1754621477039,0.23231717,116890.0,116880.0,1.51950664]
[1754621477288,0.23231717,116890.0,116880.0,1.65046664]
[1754621479184,0.23231717,116890.0,116880.0,1.01850878]
[1754621479386,0.23231717,116890.0,116880.0,1.65046664]
[1754621482192,0.06121614,116890.0,116880.0,1.65046664]
[1754621482704,0.05824614,116890.0,116880.0,1.65046664]
[1754621483769,0.05824614,116890.0,116880.0,1.01850878]
[1754621483901,0.05824614,116890.0,116880.0,1.65046664]
[1754621484292,0.05626614,116890.0,116880.0,1.70730664]
[1754621484531,0.00435614,116890.0,116880.0,1.70730664]
[1754621485214,0.05906614,116890.0,116880.0,1.70730664]
[1754621486574,0.00435614,116890.0,116880.0,1.07534878]
[1754621486713,0.00435614,116890.0,116880.0,1.70730664]
[1754621487809,0.05906614,116890.0,116880.0,1.70730664]
[1754621488768,0.05906614,116890.0,116880.0,1.07534878]
[1754621488884,0.05906614,116890.0,116880.0,1.70730664]
[1754621489637,0.00435614,116890.0,116880.0,1.70730664]
[1754621489842,0.00435614,116890.0,116880.0,1.07534878]
[1754621490041,0.17545717,116890.0,116880.0,1.07534878]
[1754621490222,0.17545717,116890.0,116880.0,1.70730664]
[1754621490661,0.23016717,116890.0,116880.0,1.70730664]
[1754621490873,0.05906614,116890.0,116880.0,1.70730664]
[1754621491129,0.23016717,116890.0,116880.0,1.07228878]
[1754621491440,0.23016717,116890.0,116880.0,1.70424664]
[1754621491746,0.05906614,116890.0,116880.0,1.70424664]
[1754621494459,0.23016717,116890.0,116880.0,1.70424664]
[1754621494797,0.05906614,116890.0,116880.0,1.70424664]
[1754621495462,0.05906614,116890.0,116880.0,1.57328664]
[1754621495669,0.05906614,116890.0,116880.0,1.70424664]
[1754621497631,0.00435614,116890.0,116880.0,1.70730664]
[1754621498101,0.00435614,116890.0,116880.0,1.07534878]
[1754621498300,0.00435614,116890.0,116880.0,1.70730664]
[1754621498520,0.05906614,116890.0,116880.0,1.65046664]
[1754621498695,0.05906614,116890.0,116880.0,1.70424664]
[1754621498874,0.06105614,116890.0,116880.0,1.65046664]
[1754621499062,0.06402614,116890.0,116880.0,1.65046664]
[1754621499263,0.06105614,116890.0,116880.0,1.65046664]
[1754621499484,0.05906614,116890.0,116880.0,1.70424664]
[1754621499693,0.05906614,116890.0,116880.0,1.70730664]
[1754621500614,0.00435614,116890.0,116880.0,1.70730664]
[1754621508458,0.23114717,116890.0,116880.0,1.65046664]
[1754621508687,0.23431717,116890.0,116880.0,1.65046664]
[1754621508797,0.23431717,116890.0,116880.0,1.51950664]
[1754621509003,0.23431717,116890.0,116880.0,1.65046664]
[1754621510065,0.23431717,116890.0,116880.0,0.84540311]
[1754621510271,0.25176619,116890.0,116880.0,1.04883893]
[1754621511613,0.25176619,116890.0,116880.0,1.2199546]
[1754621511816,0.25176619,116890.0,116880.0,1.53593353]
[1754621513603,0.25176619,116890.0,116880.0,1.27403353]
[1754621514532,0.25176619,116890.0,116880.0,1.10291786]
[1754621514738,0.25176619,116890.0,116880.0,1.27403353]
[1754621515487,0.25176619,116890.0,116880.0,1.27598353]
[1754621518065,0.25176619,116890.0,116880.0,1.14502353]
[1754621518214,0.25176619,116890.0,116880.0,1.27598353]
[1754621521814,0.25176619,116890.0,116880.0,1.14502353]
[1754621521953,0.25176619,116890.0,116880.0,1.27594353]
[1754621523474,0.25176619,116890.0,116880.0,0.64398567]
[1754621523705,0.25176619,116890.0,116880.0,1.27594353]
[1754621525660,0.25176619,116890.0,116880.0,1.14502353]
[1754621525906,0.25176619,116890.0,116880.0,1.27594353]
[1754621526902,0.24859619,116890.0,116880.0,1.27594353]
[1754621527131,0.24859619,116890.0,116880.0,0.64398567]
[1754621527361,0.24859619,116890.0,116880.0,1.27594353]
[1754621529046,0.24859619,116890.0,116880.0,1.14502353]
[1754621529231,0.24859619,116890.0,116880.0,1.27594353]
[1754621534479,0.24859619,116890.0,116880.0,1.14502353]
[1754621534695,0.24859619,116890.0,116880.0,1.27594353]
[1754621539400,0.24859619,116890.0,116880.0,1.14502353]
[1754621539668,0.24859619,116890.0,116880.0,1.27594353]
[1754621540692,0.24859619,116890.0,116880.0,1.14502353]
[1754621540900,0.24859619,116890.0,116880.0,1.27594353]
[1754621542619,0.24859619,116890.0,116880.0,1.27590353]
[1754621544043,0.24859619,116890.0,116880.0,0.64394567]
[1754621544253,0.24859619,116890.0,116880.0,1.27590353]
[1754621544597,0.24859619,116890.0,116880.0,0.64394567]
[1754621544810,0.24859619,116890.0,116880.0,0.9599246]